[Event "Titled Tuesday Blitz May 10 Early 2022"]
[White "Fajdetic, Hrvoje"]
[Black "Fromm, Marius"]
[WhiteFideId "14501945"]
[BlackFideId "12993190"]
[WhiteElo "2172"]
[BlackElo "2569"]
[Result "0-1"]
[Round "01"]
[TimeControl "180+1"]
[Date "2022.05.11"]
[WhiteClock "0:00:04"]
[BlackClock "0:00:05"]

1. d4 {[%clk 0:02:54]}  Nf6 {[%clk 0:02:59]} 2. Bf4 {[%clk 0:02:53]}  e6 {[%clk 0:03:00]} 3. e3 {[%clk 0:02:53]}  d5 {[%clk 0:03:00]} 4. Nf3 {[%clk 0:02:53]}  Bd6 {[%clk 0:03:00]} 5. Bg3 {[%clk 0:02:53]}  O-O {[%clk 0:03:00]} 6. Bd3 {[%clk 0:02:53]}  c5 {[%clk 0:02:57]} 7. c3 {[%clk 0:02:53]}  Qc7 {[%clk 0:02:58]} 8. Ne5 {[%clk 0:02:51]}  b6 {[%clk 0:02:54]} 9. f4 {[%clk 0:02:42]}  Ba6 {[%clk 0:02:53]} 10. Bxa6 {[%clk 0:02:39]}  Nxa6 {[%clk 0:02:54]} 11. Nd2 {[%clk 0:02:35]}  Nb8 {[%clk 0:02:53]} 12. Bh4 {[%clk 0:02:32]}  Nbd7 {[%clk 0:02:53]} 13. O-O {[%clk 0:02:29]}  Rac8 {[%clk 0:02:40]} 14. a4 {[%clk 0:02:28]}  Rfe8 {[%clk 0:02:29]} 15. Rf3 {[%clk 0:01:58]}  g6 {[%clk 0:02:15]} 16. Bg5 {[%clk 0:01:48]}  Bf8 {[%clk 0:02:09]} 17. Rh3 {[%clk 0:01:45]}  Bg7 {[%clk 0:02:09]} 18. Qe1 {[%clk 0:01:39]}  Nf8 {[%clk 0:02:01]} 19. Qh4 {[%clk 0:01:37]}  N6d7 {[%clk 0:01:59]} 20. Bh6 {[%clk 0:01:27]}  Qd8 {[%clk 0:01:51]} 21. Qf2 {[%clk 0:01:13]}  Bxh6 {[%clk 0:01:49]} 22. Rxh6 {[%clk 0:01:14]}  Qf6 {[%clk 0:01:49]} 23. g4 {[%clk 0:01:10]}  Qg7 {[%clk 0:01:48]} 24. Rh3 {[%clk 0:01:10]}  f6 {[%clk 0:01:47]} 25. Nxd7 {[%clk 0:01:03]}  Nxd7 {[%clk 0:01:48]} 26. Rg3 {[%clk 0:00:56]}  e5 {[%clk 0:01:46]} 27. h4 {[%clk 0:00:46]}  cxd4 {[%clk 0:01:41]} 28. exd4 {[%clk 0:00:41]}  Nf8 {[%clk 0:01:16]} 29. g5 {[%clk 0:00:37]}  exd4 {[%clk 0:01:08]} 30. f5 {[%clk 0:00:32]}  fxg5 {[%clk 0:00:58]} 31. f6 {[%clk 0:00:27]}  Qf7 {[%clk 0:00:58]} 32. hxg5 {[%clk 0:00:27]}  dxc3 {[%clk 0:00:58]} 33. bxc3 {[%clk 0:00:26]}  Ne6 {[%clk 0:00:57]} 34. Nf3 {[%clk 0:00:25]}  Rxc3 {[%clk 0:00:54]} 35. Ne5 {[%clk 0:00:23]}  Rxg3+ {[%clk 0:00:55]} 36. Qxg3 {[%clk 0:00:23]}  Nd4 {[%clk 0:00:24]} 37. Nxf7 {[%clk 0:00:19]}  Ne2+ {[%clk 0:00:25]} 38. Kf2 {[%clk 0:00:19]}  Nxg3 {[%clk 0:00:25]} 39. Nh6+ {[%clk 0:00:16]}  Kf8 {[%clk 0:00:26]} 40. Kxg3 {[%clk 0:00:16]}  Re5 {[%clk 0:00:26]} 41. Kf4 {[%clk 0:00:15]}  Re4+ {[%clk 0:00:26]} 42. Kf3 {[%clk 0:00:15]}  Re5 {[%clk 0:00:26]} 43. Kg4 {[%clk 0:00:13]}  Re4+ {[%clk 0:00:27]} 44. Kh3 {[%clk 0:00:13]}  Re5 {[%clk 0:00:28]} 45. Kh4 {[%clk 0:00:12]}  d4 {[%clk 0:00:25]} 46. Rc1 {[%clk 0:00:12]}  Rc5 {[%clk 0:00:21]} 47. Re1 {[%clk 0:00:09]}  d3 {[%clk 0:00:18]} 48. Re7 {[%clk 0:00:09]}  Rc4+ {[%clk 0:00:17]} 49. Kg3 {[%clk 0:00:08]}  d2 {[%clk 0:00:15]} 50. Rd7 {[%clk 0:00:09]}  Rc3+ {[%clk 0:00:13]} 51. Kh4 {[%clk 0:00:09]}  Rc4+ {[%clk 0:00:13]} 52. Ng4 {[%clk 0:00:09]}  Rc2 {[%clk 0:00:12]} 53. Nh6 {[%clk 0:00:08]}  Ke8 {[%clk 0:00:12]} 54. Rd3 {[%clk 0:00:07]}  Rc4+ {[%clk 0:00:11]} 55. Kg3 {[%clk 0:00:07]}  Rc3 {[%clk 0:00:10]} 56. f7+ {[%clk 0:00:08]}  Ke7 {[%clk 0:00:08]} 57. Rxc3 {[%clk 0:00:08]}  d1=Q {[%clk 0:00:08]} 58. Rc7+ {[%clk 0:00:07]}  Ke6 {[%clk 0:00:06]} 59. Rc6+ {[%clk 0:00:06]}  Kd7 {[%clk 0:00:05]} 60. f8=Q {[%clk 0:00:05]}  Kxc6 {[%clk 0:00:05]} 61. Qf3+ {[%clk 0:00:05]}  Qxf3+ {[%clk 0:00:05]} 62. Kxf3 {[%clk 0:00:06]}  Kc5 {[%clk 0:00:05]} 63. Ng8 {[%clk 0:00:06]}  Kb4 {[%clk 0:00:04]} 64. Nf6 {[%clk 0:00:07]}  Kxa4 {[%clk 0:00:05]} 65. Nxh7 {[%clk 0:00:08]}  b5 {[%clk 0:00:05]} 66. Nf8 {[%clk 0:00:09]}  b4 {[%clk 0:00:06]} 67. Nxg6 {[%clk 0:00:10]}  b3 {[%clk 0:00:06]} 68. Nf4 {[%clk 0:00:10]}  b2 {[%clk 0:00:06]} 69. Ne2 {[%clk 0:00:11]}  Kb3 {[%clk 0:00:06]} 70. Nd4+ {[%clk 0:00:10]}  Kc3 {[%clk 0:00:05]} 71. Ne2+ {[%clk 0:00:10]}  Kd2 {[%clk 0:00:04]} 72. g6 {[%clk 0:00:09]}  b1=Q {[%clk 0:00:04]} 73. Nf4 {[%clk 0:00:08]}  Qb8 {[%clk 0:00:02]} 74. g7 {[%clk 0:00:07]}  Qg8 {[%clk 0:00:03]} 75. Nh5 {[%clk 0:00:07]}  Qf7+ {[%clk 0:00:03]} 76. Ke4 {[%clk 0:00:07]}  Qg6+ {[%clk 0:00:02]} 77. Kd4 {[%clk 0:00:06]}  a5 {[%clk 0:00:03]} 78. Kc4 {[%clk 0:00:06]}  a4 {[%clk 0:00:04]} 79. Kb4 {[%clk 0:00:06]}  Qg4+ {[%clk 0:00:03]} 80. Ka3 {[%clk 0:00:06]}  Kc2 {[%clk 0:00:04]} 81. Ka2 {[%clk 0:00:04]}  Qc4+ {[%clk 0:00:03]} 82. Ka1 {[%clk 0:00:04]}  Qc3+ {[%clk 0:00:04]} 83. Ka2 {[%clk 0:00:04]}  Qb2# {[%clk 0:00:05]} 0-1


[Site "https://www.chess.com"]

[Event "Titled Tuesday Blitz May 10 Early 2022"]
[White "Fathy, Elameir"]
[Black "Kadric, Denis"]
[WhiteFideId "10600396"]
[BlackFideId "14403803"]
[WhiteElo "2311"]
[BlackElo "2657"]
[Result "0-1"]
[Round "01"]
[TimeControl "180+1"]
[Date "2022.05.11"]
[WhiteClock "0:00:36"]
[BlackClock "0:01:20"]

1. d4 {[%clk 0:02:55]}  d6 {[%clk 0:02:56]} 2. Nf3 {[%clk 0:02:54]}  g6 {[%clk 0:02:55]} 3. c4 {[%clk 0:02:54]}  Bg7 {[%clk 0:02:55]} 4. Nc3 {[%clk 0:02:54]}  Nd7 {[%clk 0:02:56]} 5. e4 {[%clk 0:02:55]}  e5 {[%clk 0:02:56]} 6. Be2 {[%clk 0:02:51]}  Nh6 {[%clk 0:02:57]} 7. h3 {[%clk 0:02:37]}  O-O {[%clk 0:02:56]} 8. O-O {[%clk 0:02:31]}  c6 {[%clk 0:02:50]} 9. d5 {[%clk 0:02:27]}  c5 {[%clk 0:02:50]} 10. a3 {[%clk 0:02:21]}  f6 {[%clk 0:02:49]} 11. Be3 {[%clk 0:02:16]}  Nf7 {[%clk 0:02:49]} 12. b4 {[%clk 0:02:16]}  Bh6 {[%clk 0:02:48]} 13. Bxh6 {[%clk 0:02:14]}  Nxh6 {[%clk 0:02:49]} 14. Nb5 {[%clk 0:02:02]}  Nf7 {[%clk 0:02:48]} 15. Nd2 {[%clk 0:01:58]}  a6 {[%clk 0:02:44]} 16. Nc3 {[%clk 0:01:58]}  f5 {[%clk 0:02:44]} 17. exf5 {[%clk 0:01:57]}  gxf5 {[%clk 0:02:45]} 18. Qc2 {[%clk 0:01:58]}  e4 {[%clk 0:02:24]} 19. f4 {[%clk 0:01:48]}  cxb4 {[%clk 0:02:18]} 20. axb4 {[%clk 0:01:47]}  Qb6+ {[%clk 0:02:18]} 21. Kh2 {[%clk 0:01:41]}  Qxb4 {[%clk 0:02:19]} 22. Rab1 {[%clk 0:01:33]}  Qc5 {[%clk 0:02:15]} 23. g4 {[%clk 0:01:32]}  Nf6 {[%clk 0:02:13]} 24. gxf5 {[%clk 0:01:23]}  Bxf5 {[%clk 0:02:07]} 25. Rxb7 {[%clk 0:01:12]}  Qe3 {[%clk 0:02:02]} 26. Nb3 {[%clk 0:00:42]}  Qxh3+ {[%clk 0:02:00]} 27. Kg1 {[%clk 0:00:37]}  Kh8 {[%clk 0:01:26]} 28. Kf2 {[%clk 0:00:36]}  e3+ {[%clk 0:01:20]} 29. Ke1 {[%clk 0:00:36]}  Bxc2 {[%clk 0:01:20]} 0-1


[Site "https://www.chess.com"]

[Event "Titled Tuesday Blitz May 10 Early 2022"]
[White "Federzoni, Enzo"]
[Black "Nenezic, Marko"]
[WhiteFideId "2173301"]
[BlackFideId "912123"]
[WhiteElo "1956"]
[BlackElo "2457"]
[Result "0-1"]
[Round "01"]
[TimeControl "180+1"]
[Date "2022.05.11"]
[WhiteClock "0:00:14"]
[BlackClock "0:00:16"]

1. c4 {[%clk 0:03:00]}  Nf6 {[%clk 0:02:59]} 2. Nc3 {[%clk 0:03:00]}  g6 {[%clk 0:03:00]} 3. e4 {[%clk 0:02:59]}  d6 {[%clk 0:03:01]} 4. d4 {[%clk 0:03:00]}  Bg7 {[%clk 0:03:02]} 5. Nf3 {[%clk 0:02:59]}  O-O {[%clk 0:03:02]} 6. Bd3 {[%clk 0:03:00]}  Bg4 {[%clk 0:02:59]} 7. Be2 {[%clk 0:03:00]}  Nfd7 {[%clk 0:02:59]} 8. O-O {[%clk 0:02:55]}  Nc6 {[%clk 0:02:53]} 9. Be3 {[%clk 0:02:53]}  e5 {[%clk 0:02:42]} 10. d5 {[%clk 0:02:48]}  Bxf3 {[%clk 0:02:42]} 11. Bxf3 {[%clk 0:02:44]}  Nd4 {[%clk 0:02:42]} 12. Bxd4 {[%clk 0:02:40]}  exd4 {[%clk 0:02:42]} 13. Ne2 {[%clk 0:02:41]}  d3 {[%clk 0:02:38]} 14. Qxd3 {[%clk 0:02:40]}  Bxb2 {[%clk 0:02:38]} 15. Rab1 {[%clk 0:02:37]}  Bg7 {[%clk 0:02:38]} 16. Nd4 {[%clk 0:02:31]}  Nc5 {[%clk 0:02:24]} 17. Qd2 {[%clk 0:02:27]}  Re8 {[%clk 0:02:18]} 18. Rfe1 {[%clk 0:02:26]}  Bxd4 {[%clk 0:02:06]} 19. Qxd4 {[%clk 0:02:25]}  Qe7 {[%clk 0:02:07]} 20. g3 {[%clk 0:02:16]}  Qe5 {[%clk 0:02:00]} 21. Qd2 {[%clk 0:02:09]}  Qf6 {[%clk 0:01:51]} 22. Bg2 {[%clk 0:02:06]}  Re7 {[%clk 0:01:52]} 23. h4 {[%clk 0:01:50]}  Rae8 {[%clk 0:01:50]} 24. f3 {[%clk 0:01:50]}  b6 {[%clk 0:01:41]} 25. Re2 {[%clk 0:01:46]}  Kg7 {[%clk 0:01:35]} 26. Kh2 {[%clk 0:01:45]}  h6 {[%clk 0:01:32]} 27. Rbe1 {[%clk 0:01:42]}  g5 {[%clk 0:01:32]} 28. h5 {[%clk 0:01:36]}  Qe5 {[%clk 0:01:32]} 29. Bh3 {[%clk 0:01:14]}  a5 {[%clk 0:01:31]} 30. Bf5 {[%clk 0:01:14]}  a4 {[%clk 0:01:31]} 31. f4 {[%clk 0:01:11]}  Qf6 {[%clk 0:01:31]} 32. fxg5 {[%clk 0:00:59]}  Qxg5 {[%clk 0:01:29]} 33. Qxg5+ {[%clk 0:00:48]}  hxg5 {[%clk 0:01:29]} 34. Kh3 {[%clk 0:00:46]}  Kh6 {[%clk 0:01:21]} 35. Kg4 {[%clk 0:00:45]}  Nd3 {[%clk 0:01:21]} 36. Rf1 {[%clk 0:00:42]}  Ne5+ {[%clk 0:01:20]} 37. Kh3 {[%clk 0:00:41]}  Kxh5 {[%clk 0:01:00]} 38. Kg2 {[%clk 0:00:41]}  Kh6 {[%clk 0:01:00]} 39. Rh1+ {[%clk 0:00:40]}  Kg7 {[%clk 0:01:00]} 40. Rh7+ {[%clk 0:00:40]}  Kf6 {[%clk 0:00:58]} 41. Rh6+ {[%clk 0:00:38]}  Kg7 {[%clk 0:00:52]} 42. Rh7+ {[%clk 0:00:37]}  Kg8 {[%clk 0:00:53]} 43. Kf1 {[%clk 0:00:36]}  Ng6 {[%clk 0:00:50]} 44. Reh2 {[%clk 0:00:33]}  Rxe4 {[%clk 0:00:51]} 45. Bxg6 {[%clk 0:00:25]}  Re1+ {[%clk 0:00:36]} 46. Kf2 {[%clk 0:00:24]}  R8e2+ {[%clk 0:00:37]} 47. Kf3 {[%clk 0:00:24]}  Rxh2 {[%clk 0:00:37]} 48. Rxh2 {[%clk 0:00:23]}  fxg6 {[%clk 0:00:37]} 49. Rc2 {[%clk 0:00:19]}  Kg7 {[%clk 0:00:35]} 50. Kg4 {[%clk 0:00:20]}  Kf6 {[%clk 0:00:34]} 51. Rf2+ {[%clk 0:00:19]}  Kg7 {[%clk 0:00:34]} 52. Kxg5 {[%clk 0:00:19]}  Re5+ {[%clk 0:00:33]} 53. Kf4 {[%clk 0:00:17]}  Rf5+ {[%clk 0:00:30]} 54. Ke3 {[%clk 0:00:17]}  Rxf2 {[%clk 0:00:31]} 55. Kxf2 {[%clk 0:00:18]}  Kf6 {[%clk 0:00:31]} 56. Ke3 {[%clk 0:00:18]}  Ke5 {[%clk 0:00:29]} 57. a3 {[%clk 0:00:17]}  b5 {[%clk 0:00:22]} 58. cxb5 {[%clk 0:00:16]}  Kxd5 {[%clk 0:00:22]} 59. Kf4 {[%clk 0:00:15]}  Ke6 {[%clk 0:00:21]} 60. Kg5 {[%clk 0:00:14]}  Kf7 {[%clk 0:00:15]} 61. g4 {[%clk 0:00:15]}  d5 {[%clk 0:00:15]} 62. Kf4 {[%clk 0:00:15]}  Kf6 {[%clk 0:00:15]} 63. Ke3 {[%clk 0:00:14]}  Ke5 {[%clk 0:00:14]} 64. Kd3 {[%clk 0:00:14]}  g5 {[%clk 0:00:14]} 65. Ke3 {[%clk 0:00:14]}  d4+ {[%clk 0:00:15]} 66. Kd3 {[%clk 0:00:14]}  Kd5 {[%clk 0:00:16]} 0-1


[Site "https://www.chess.com"]

[Event "Titled Tuesday Blitz May 10 Early 2022"]
[White "Gatterer, Florian"]
[Black "Csonka, Balazs"]
[WhiteFideId "811688"]
[BlackFideId "742910"]
[WhiteElo "2218"]
[BlackElo "2404"]
[Result "0-1"]
[Round "01"]
[TimeControl "180+1"]
[Date "2022.05.11"]
[WhiteClock "0:00:04"]
[BlackClock "0:00:09"]

1. c4 {[%clk 0:03:00]}  e5 {[%clk 0:02:58]} 2. Nc3 {[%clk 0:02:58]}  Nf6 {[%clk 0:02:57]} 3. Nf3 {[%clk 0:02:57]}  Nc6 {[%clk 0:02:56]} 4. g3 {[%clk 0:02:55]}  e4 {[%clk 0:02:55]} 5. Ng5 {[%clk 0:02:53]}  Ng4 {[%clk 0:02:55]} 6. Ngxe4 {[%clk 0:02:46]}  f5 {[%clk 0:02:56]} 7. h3 {[%clk 0:02:42]}  Nh6 {[%clk 0:02:42]} 8. d4 {[%clk 0:02:39]}  fxe4 {[%clk 0:02:39]} 9. Bxh6 {[%clk 0:02:38]}  gxh6 {[%clk 0:02:36]} 10. Nxe4 {[%clk 0:02:38]}  Bg7 {[%clk 0:02:18]} 11. e3 {[%clk 0:02:37]}  Qe7 {[%clk 0:02:00]} 12. Qh5+ {[%clk 0:02:25]}  Kd8 {[%clk 0:01:36]} 13. Bg2 {[%clk 0:02:04]}  Qb4+ {[%clk 0:01:31]} 14. Nd2 {[%clk 0:01:43]}  Qxb2 {[%clk 0:01:25]} 15. Rb1 {[%clk 0:01:43]}  Qxa2 {[%clk 0:01:19]} 16. Qh4+ {[%clk 0:01:27]}  Ne7 {[%clk 0:01:18]} 17. Bxb7 {[%clk 0:01:25]}  Rb8 {[%clk 0:00:55]} 18. Be4 {[%clk 0:01:07]}  Rxb1+ {[%clk 0:00:56]} 19. Bxb1 {[%clk 0:01:07]}  Qb2 {[%clk 0:00:55]} 20. Ke2 {[%clk 0:00:43]}  Rf8 {[%clk 0:00:40]} 21. Rf1 {[%clk 0:00:32]}  Qb6 {[%clk 0:00:30]} 22. Bxh7 {[%clk 0:00:29]}  Qf6 {[%clk 0:00:23]} 23. Qh5 {[%clk 0:00:25]}  d6 {[%clk 0:00:20]} 24. Be4 {[%clk 0:00:23]}  Be6 {[%clk 0:00:17]} 25. d5 {[%clk 0:00:20]}  Bf5 {[%clk 0:00:15]} 26. Bxf5 {[%clk 0:00:16]}  Qxf5 {[%clk 0:00:13]} 27. Qxf5 {[%clk 0:00:16]}  Nxf5 {[%clk 0:00:14]} 28. g4 {[%clk 0:00:15]}  Ne7 {[%clk 0:00:12]} 29. f4 {[%clk 0:00:14]}  Kd7 {[%clk 0:00:13]} 30. Rb1 {[%clk 0:00:14]}  Ra8 {[%clk 0:00:11]} 31. Rb3 {[%clk 0:00:12]}  a5 {[%clk 0:00:11]} 32. Ra3 {[%clk 0:00:12]}  a4 {[%clk 0:00:09]} 33. e4 {[%clk 0:00:12]}  Bb2 {[%clk 0:00:09]} 34. Ra2 {[%clk 0:00:12]}  a3 {[%clk 0:00:09]} 35. Kd3 {[%clk 0:00:12]}  c6 {[%clk 0:00:08]} 36. Nb1 {[%clk 0:00:11]}  cxd5 {[%clk 0:00:08]} 37. exd5 {[%clk 0:00:09]}  Nc8 {[%clk 0:00:07]} 38. Nc3 {[%clk 0:00:08]}  Nb6 {[%clk 0:00:06]} 39. Nb5 {[%clk 0:00:08]}  Na4 {[%clk 0:00:06]} 40. f5 {[%clk 0:00:06]}  Nc5+ {[%clk 0:00:06]} 41. Kc2 {[%clk 0:00:05]}  Ra4 {[%clk 0:00:06]} 42. Nxa3 {[%clk 0:00:02]}  Bxa3 {[%clk 0:00:06]} 43. Ra1 {[%clk 0:00:02]}  Rxc4+ {[%clk 0:00:06]} 44. Kd2 {[%clk 0:00:02]}  Nb3+ {[%clk 0:00:06]} 45. Kd3 {[%clk 0:00:01]}  Rd4+ {[%clk 0:00:06]} 46. Ke3 {[%clk 0:00:01]}  Nxa1 {[%clk 0:00:05]} 47. Kxd4 {[%clk 0:00:02]}  Bb2+ {[%clk 0:00:05]} 48. Ke4 {[%clk 0:00:02]}  Ke7 {[%clk 0:00:05]} 49. h4 {[%clk 0:00:03]}  Kf6 {[%clk 0:00:06]} 50. Kf4 {[%clk 0:00:03]}  Bc1+ {[%clk 0:00:05]} 51. Ke4 {[%clk 0:00:02]}  Nb3 {[%clk 0:00:06]} 52. Kd3 {[%clk 0:00:02]}  Nc5+ {[%clk 0:00:06]} 53. Kc4 {[%clk 0:00:03]}  Bf4 {[%clk 0:00:06]} 54. Kb5 {[%clk 0:00:02]}  Bg3 {[%clk 0:00:06]} 55. g5+ {[%clk 0:00:03]}  hxg5 {[%clk 0:00:06]} 56. hxg5+ {[%clk 0:00:03]}  Kxg5 {[%clk 0:00:07]} 57. Kc6 {[%clk 0:00:03]}  Kxf5 {[%clk 0:00:07]} 58. Kc7 {[%clk 0:00:04]}  Ke5 {[%clk 0:00:08]} 59. Kc6 {[%clk 0:00:05]}  Kd4 {[%clk 0:00:09]} 60. Kc7 {[%clk 0:00:04]}  Kxd5 {[%clk 0:00:09]} 61. Kd8 {[%clk 0:00:05]}  Ke6 {[%clk 0:00:09]} 62. Kc8 {[%clk 0:00:04]}  d5 {[%clk 0:00:09]} 0-1


[Site "https://www.chess.com"]

[Event "Titled Tuesday Blitz May 10 Early 2022"]
[White "Golizadeh, Asghar"]
[Black "Fedoseev, Vladimir"]
[WhiteFideId "12505269"]
[BlackFideId "24130737"]
[WhiteElo "2403"]
[BlackElo "2726"]
[Result "0-1"]
[Round "01"]
[TimeControl "180+1"]
[Date "2022.05.10"]
[WhiteClock "0:00:08"]
[BlackClock "0:00:25"]

1. e4 {[%clk 0:02:57]}  c5 {[%clk 0:02:59]} 2. Nc3 {[%clk 0:02:56]}  Nc6 {[%clk 0:02:56]} 3. Bb5 {[%clk 0:02:55]}  Nd4 {[%clk 0:02:54]} 4. Nf3 {[%clk 0:02:55]}  a6 {[%clk 0:02:52]} 5. Bd3 {[%clk 0:02:55]}  e6 {[%clk 0:02:48]} 6. O-O {[%clk 0:02:45]}  Nxf3+ {[%clk 0:02:43]} 7. Qxf3 {[%clk 0:02:44]}  Ne7 {[%clk 0:02:44]} 8. e5 {[%clk 0:02:36]}  Nc6 {[%clk 0:02:45]} 9. Re1 {[%clk 0:02:36]}  b5 {[%clk 0:02:39]} 10. Be4 {[%clk 0:02:26]}  Nxe5 {[%clk 0:02:37]} 11. Qg3 {[%clk 0:02:27]}  Nc6 {[%clk 0:02:38]} 12. d3 {[%clk 0:02:16]}  Bb7 {[%clk 0:02:35]} 13. Nd5 {[%clk 0:02:07]}  d6 {[%clk 0:02:19]} 14. Bg5 {[%clk 0:01:56]}  Qb8 {[%clk 0:02:17]} 15. Nf6+ {[%clk 0:01:45]}  gxf6 {[%clk 0:02:16]} 16. Bxf6 {[%clk 0:01:45]}  d5 {[%clk 0:02:16]} 17. Qh4 {[%clk 0:01:19]}  Be7 {[%clk 0:01:48]} 18. Bxd5 {[%clk 0:01:19]}  Qd8 {[%clk 0:01:48]} 19. Bxc6+ {[%clk 0:01:06]}  Bxc6 {[%clk 0:01:47]} 20. Qh5 {[%clk 0:01:03]}  Rg8 {[%clk 0:00:54]} 21. Rxe6 {[%clk 0:00:58]}  Bxg2 {[%clk 0:00:52]} 22. Qxh7 {[%clk 0:00:43]}  Rg4 {[%clk 0:00:30]} 23. f3 {[%clk 0:00:19]}  Bxf3+ {[%clk 0:00:29]} 24. Kf2 {[%clk 0:00:20]}  fxe6 {[%clk 0:00:29]} 25. Qh5+ {[%clk 0:00:16]}  Kd7 {[%clk 0:00:28]} 26. Bxe7 {[%clk 0:00:09]}  Qxe7 {[%clk 0:00:26]} 27. Kxf3 {[%clk 0:00:08]}  Rg5 {[%clk 0:00:26]} 28. Qh3 {[%clk 0:00:08]}  Rf8+ {[%clk 0:00:26]} 29. Ke2 {[%clk 0:00:09]}  Re5+ {[%clk 0:00:26]} 30. Kd2 {[%clk 0:00:09]}  Rf2+ {[%clk 0:00:26]} 31. Kc3 {[%clk 0:00:09]}  Ree2 {[%clk 0:00:26]} 32. Rc1 {[%clk 0:00:09]}  Qg5 {[%clk 0:00:24]} 33. Qh7+ {[%clk 0:00:08]}  Kd6 {[%clk 0:00:24]} 34. Qb7 {[%clk 0:00:07]}  Qd2+ {[%clk 0:00:24]} 35. Kb3 {[%clk 0:00:08]}  Qb4# {[%clk 0:00:25]} 0-1


[Site "https://www.chess.com"]

[Event "Titled Tuesday Blitz May 10 Early 2022"]
[White "Hansch, Karsten"]
[Black "Sjugirov, Sanan"]
[WhiteFideId "24692239"]
[BlackFideId "4189302"]
[WhiteElo "2358"]
[BlackElo "2602"]
[Result "0-1"]
[Round "01"]
[TimeControl "180+1"]
[Date "2022.05.10"]
[WhiteClock "0:02:25"]
[BlackClock "0:02:15"]

1. e4 {[%clk 0:02:36]}  c6 {[%clk 0:02:55]} 2. d4 {[%clk 0:02:36]}  d5 {[%clk 0:02:55]} 3. e5 {[%clk 0:02:36]}  Bf5 {[%clk 0:02:54]} 4. h4 {[%clk 0:02:36]}  h6 {[%clk 0:02:47]} 5. g4 {[%clk 0:02:35]}  Bd7 {[%clk 0:02:47]} 6. h5 {[%clk 0:02:34]}  e6 {[%clk 0:02:46]} 7. Be3 {[%clk 0:02:34]}  c5 {[%clk 0:02:42]} 8. dxc5 {[%clk 0:02:33]}  Qc7 {[%clk 0:02:41]} 9. Nc3 {[%clk 0:02:32]}  Bxc5 {[%clk 0:02:39]} 10. Nb5 {[%clk 0:02:30]}  Bxb5 {[%clk 0:02:27]} 11. Bxb5+ {[%clk 0:02:29]}  Kf8 {[%clk 0:02:24]} 12. Bxc5+ {[%clk 0:02:25]}  Qxc5 {[%clk 0:02:25]} 13. Qd3 {[%clk 0:02:25]}  a6 {[%clk 0:02:15]} 0-1


[Site "https://www.chess.com"]

[Event "Titled Tuesday Blitz May 10 Early 2022"]
[White "Dronavalli, Harika"]
[Black "Skuhala, Barbara"]
[WhiteFideId "5015197"]
[BlackFideId "14605465"]
[WhiteElo "2382"]
[BlackElo "2155"]
[Result "1-0"]
[Round "01"]
[TimeControl "180+1"]
[Date "2022.05.11"]
[WhiteClock "0:00:30"]
[BlackClock "0:01:25"]

1. Nf3 {[%clk 0:03:00]}  Nf6 {[%clk 0:02:59]} 2. e3 {[%clk 0:03:00]}  e6 {[%clk 0:02:59]} 3. b3 {[%clk 0:03:00]}  d5 {[%clk 0:02:59]} 4. Bb2 {[%clk 0:03:00]}  Be7 {[%clk 0:02:59]} 5. g3 {[%clk 0:02:53]}  O-O {[%clk 0:02:57]} 6. Bg2 {[%clk 0:02:54]}  c5 {[%clk 0:02:57]} 7. O-O {[%clk 0:02:53]}  b6 {[%clk 0:02:57]} 8. c4 {[%clk 0:02:53]}  Bb7 {[%clk 0:02:58]} 9. Nc3 {[%clk 0:02:53]}  dxc4 {[%clk 0:02:56]} 10. bxc4 {[%clk 0:02:53]}  Nc6 {[%clk 0:02:55]} 11. Qe2 {[%clk 0:02:52]}  Rc8 {[%clk 0:02:54]} 12. Rfd1 {[%clk 0:02:50]}  Qc7 {[%clk 0:02:54]} 13. Rab1 {[%clk 0:02:40]}  Rfd8 {[%clk 0:02:53]} 14. Ne1 {[%clk 0:02:41]}  Na5 {[%clk 0:02:53]} 15. f4 {[%clk 0:02:35]}  Bxg2 {[%clk 0:02:52]} 16. Nxg2 {[%clk 0:02:35]}  Qc6 {[%clk 0:02:50]} 17. g4 {[%clk 0:02:24]}  Ne4 {[%clk 0:02:49]} 18. Nb5 {[%clk 0:02:24]}  Qb7 {[%clk 0:02:40]} 19. d3 {[%clk 0:02:24]}  Nd6 {[%clk 0:02:40]} 20. Nxd6 {[%clk 0:02:20]}  Bxd6 {[%clk 0:02:39]} 21. g5 {[%clk 0:02:20]}  Nc6 {[%clk 0:02:38]} 22. h4 {[%clk 0:01:59]}  Bf8 {[%clk 0:02:38]} 23. h5 {[%clk 0:01:58]}  Ne7 {[%clk 0:02:38]} 24. Nh4 {[%clk 0:01:48]}  Rd7 {[%clk 0:02:32]} 25. g6 {[%clk 0:01:42]}  hxg6 {[%clk 0:02:30]} 26. hxg6 {[%clk 0:01:42]}  Nxg6 {[%clk 0:02:30]} 27. Nxg6 {[%clk 0:01:42]}  fxg6 {[%clk 0:02:30]} 28. Qg4 {[%clk 0:01:43]}  Rf7 {[%clk 0:02:28]} 29. Kf2 {[%clk 0:01:35]}  Re8 {[%clk 0:02:27]} 30. Be5 {[%clk 0:01:29]}  Be7 {[%clk 0:02:25]} 31. Rh1 {[%clk 0:01:28]}  Bf6 {[%clk 0:02:23]} 32. Qh3 {[%clk 0:01:20]}  Kf8 {[%clk 0:02:22]} 33. Bd6+ {[%clk 0:01:20]}  Rfe7 {[%clk 0:02:19]} 34. Qg4 {[%clk 0:01:18]}  Qd7 {[%clk 0:02:10]} 35. Bxe7+ {[%clk 0:01:17]}  Kxe7 {[%clk 0:02:10]} 36. Ke2 {[%clk 0:01:17]}  Rd8 {[%clk 0:02:09]} 37. Rbd1 {[%clk 0:01:17]}  Qa4 {[%clk 0:02:09]} 38. Qxg6 {[%clk 0:01:13]}  Qxa2+ {[%clk 0:02:06]} 39. Rd2 {[%clk 0:01:13]}  Qb3 {[%clk 0:02:07]} 40. f5 {[%clk 0:01:04]}  e5 {[%clk 0:02:03]} 41. Rh7 {[%clk 0:00:59]}  Rg8 {[%clk 0:01:59]} 42. Qg2 {[%clk 0:00:58]}  Qa4 {[%clk 0:01:54]} 43. Qd5 {[%clk 0:00:55]}  Re8 {[%clk 0:01:44]} 44. Kf3 {[%clk 0:00:48]}  Qd7 {[%clk 0:01:43]} 45. Qxd7+ {[%clk 0:00:42]}  Kxd7 {[%clk 0:01:43]} 46. Ke4 {[%clk 0:00:42]}  Kd6 {[%clk 0:01:43]} 47. Rb2 {[%clk 0:00:43]}  Rb8 {[%clk 0:01:42]} 48. Rh1 {[%clk 0:00:43]}  Kc6 {[%clk 0:01:40]} 49. Ra2 {[%clk 0:00:42]}  a5 {[%clk 0:01:40]} 50. Rb2 {[%clk 0:00:42]}  Rd8 {[%clk 0:01:37]} 51. Rhb1 {[%clk 0:00:41]}  Rb8 {[%clk 0:01:37]} 52. Rb5 {[%clk 0:00:41]}  Rb7 {[%clk 0:01:37]} 53. R1b2 {[%clk 0:00:39]}  Rb8 {[%clk 0:01:36]} 54. Rxa5 {[%clk 0:00:37]}  Rb7 {[%clk 0:01:33]} 55. Ra6 {[%clk 0:00:37]}  Rb8 {[%clk 0:01:33]} 56. Rb1 {[%clk 0:00:35]}  Rb7 {[%clk 0:01:33]} 57. Ra8 {[%clk 0:00:36]}  Kd6 {[%clk 0:01:31]} 58. Rg8 {[%clk 0:00:35]}  Kc6 {[%clk 0:01:31]} 59. Rc8+ {[%clk 0:00:35]}  Kd6 {[%clk 0:01:31]} 60. Rh1 {[%clk 0:00:34]}  Kd7 {[%clk 0:01:31]} 61. Rhh8 {[%clk 0:00:34]}  Ra7 {[%clk 0:01:27]} 62. Ra8 {[%clk 0:00:35]}  Rb7 {[%clk 0:01:26]} 63. Rhb8 {[%clk 0:00:35]}  Kc6 {[%clk 0:01:24]} 64. Rxb7 {[%clk 0:00:35]}  Kxb7 {[%clk 0:01:25]} 65. Rf8 {[%clk 0:00:35]}  Kc6 {[%clk 0:01:25]} 66. Rf7 {[%clk 0:00:36]}  b5 {[%clk 0:01:25]} 67. cxb5+ {[%clk 0:00:36]}  Kxb5 {[%clk 0:01:26]} 68. Kd5 {[%clk 0:00:36]}  Kb4 {[%clk 0:01:26]} 69. Ra7 {[%clk 0:00:32]}  Kc3 {[%clk 0:01:26]} 70. Ra3+ {[%clk 0:00:31]}  Kb4 {[%clk 0:01:25]} 71. Ra6 {[%clk 0:00:30]}  Kc3 {[%clk 0:01:25]} 72. Ke4 {[%clk 0:00:30]}  Kb4 {[%clk 0:01:25]} 73. Rc6 {[%clk 0:00:31]}  Kb5 {[%clk 0:01:25]} 74. Kd5 {[%clk 0:00:30]} 1-0


[Site "https://www.chess.com"]